bitfinex-derivatives/quotes_BTCF0:USTF0_20250320
["timestamp","ask_amount","ask_price","bid_price","bid_amount"]
[1742479105917,0.2091,85492.0,85491.0,0.3770158]
[1742479106317,0.2091,85492.0,85491.0,0.1170158]
[1742479106513,0.2091,85492.0,85490.0,0.0158243]
[1742479106718,0.1170172,85491.0,85490.0,0.1170171]
[1742479107222,0.1170171,85490.0,85489.0,4e-05]
[1742479107518,0.1001,85491.0,85490.0,0.1170171]
[1742479107718,0.2171158,85491.0,85490.0,0.1170171]
[1742479107913,0.2191158,85491.0,85490.0,0.1170171]
[1742479108619,0.2171158,85491.0,85490.0,0.1170171]
[1742479109412,0.2191158,85491.0,85490.0,0.1170171]
[1742479109614,0.1021,85491.0,85490.0,0.1170171]
[1742479109809,0.2063,85491.0,85490.0,0.1170171]
[1742479110012,0.2063,85491.0,85490.0,0.2171171]
[1742479110216,0.2063,85491.0,85490.0,0.3447171]
[1742479110622,0.381828,85491.0,85490.0,0.1170171]
[1742479110925,0.382828,85491.0,85490.0,0.1170171]
[1742479111114,0.2658084,85491.0,85490.0,0.1170171]
[1742479115827,0.2073,85491.0,85490.0,0.1170171]
[1742479116121,0.1031,85491.0,85490.0,0.2140171]
[1742479116325,1e-07,85491.0,85490.0,0.83961956]
[1742479116528,1e-07,85491.0,85490.0,0.94321956]
[1742479117015,1e-07,85491.0,85490.0,2.59321956]
[1742479118915,1e-07,85491.0,85490.0,2.44321956]
[1742479119121,1e-07,85491.0,85490.0,2.08241956]
[1742479119422,1e-07,85491.0,85490.0,0.2140171]
[1742479120016,0.1170159,85491.0,85490.0,0.2140171]
[1742479120429,0.3146159,85491.0,85490.0,0.62583352]
[1742479120727,0.1976001,85491.0,85490.0,0.62583352]
[1742479120926,0.1975601,85491.0,85490.0,0.62583352]
[1742479121530,0.3145759,85491.0,85490.0,0.62583352]
[1742479122220,0.3145759,85491.0,85490.0,0.50881642]
[1742479122419,0.3145759,85491.0,85490.0,0.2140171]
[1742479123636,0.1975601,85491.0,85490.0,0.2140171]
[1742479124029,0.3145759,85491.0,85490.0,0.2140171]
[1742479124223,0.1170185,85489.0,85488.0,4e-05]
[1742479124730,0.1170226,85486.0,85485.0,0.1170233]
[1742479124916,0.1170226,85486.0,85485.0,0.2340466]
[1742479125120,0.3200226,85486.0,85485.0,0.2340466]
[1742479125832,0.3200226,85486.0,85485.0,0.1170233]
[1742479126733,0.1170281,85482.0,85481.0,0.00017549]
[1742479126937,0.4778281,85482.0,85481.0,0.00017549]
[1742479127126,0.5829281,85482.0,85481.0,0.00017549]
[1742479128128,0.6812281,85482.0,85481.0,0.00017549]
[1742479129935,0.6812281,85482.0,85481.0,0.11720499]
[1742479130323,0.3608,85491.0,85490.0,0.1170171]
[1742479130526,0.5363285,85491.0,85490.0,0.1170171]
[1742479130927,0.3608,85491.0,85490.0,0.2232171]
[1742479131132,0.17499802,85498.0,85497.0,0.1170076]
[1742479131335,0.32599671,85498.0,85497.0,0.1170076]
[1742479131627,0.32599671,85498.0,85497.0,0.2175076]
[1742479131831,0.42959671,85498.0,85497.0,0.2175076]
[1742479132430,0.20899051,85498.0,85497.0,0.3429876]
[1742479132633,0.20899051,85498.0,85497.0,0.4463876]
[1742479133845,0.20899051,85498.0,85497.0,0.6963876]
[1742479134330,9e-08,85498.0,85497.0,0.6963876]
[1742479136941,9e-08,85498.0,85497.0,0.71086781]
[1742479137142,9e-08,85498.0,85497.0,2.21086781]
[1742479138031,9e-08,85498.0,85497.0,2.21030781]
[1742479138434,9e-08,85498.0,85497.0,2.1958276]
[1742479139246,9e-08,85498.0,85497.0,2.21056659]
[1742479140237,9e-08,85498.0,85497.0,2.57136659]
[1742479140437,4e-05,85514.0,85513.0,0.1169857]
[1742479140639,4e-05,85514.0,85513.0,0.5017857]
[1742479140846,0.2113,85527.0,85513.0,0.26]
[1742479141140,0.3608,85520.0,85519.0,0.1169775]
[1742479141341,4e-05,85522.0,85521.0,0.1169747]
[1742479141549,4e-05,85522.0,85521.0,0.2418947]
[1742479141742,0.10094,85522.0,85521.0,0.2418947]
[1742479143137,0.10094,85522.0,85521.0,0.3442947]
[1742479143444,0.10094,85522.0,85521.0,0.5942947]
[1742479143643,0.10094,85522.0,85521.0,0.6921947]
[1742479143837,0.1009,85522.0,85521.0,0.6921947]
[1742479144237,4e-05,85526.0,85521.0,0.6921947]
[1742479144238,4e-05,85526.0,85525.0,0.1169693]
[1742479144852,0.00017549,85528.0,85527.0,0.1169665]
[1742479145144,0.00021549,85528.0,85527.0,0.1169665]
[1742479145544,0.00021549,85528.0,85527.0,0.3112665]
[1742479146043,0.00021549,85528.0,85527.0,0.5412665]
[1742479146444,0.00021549,85528.0,85527.0,0.9020665]
[1742479146845,0.00017549,85528.0,85527.0,0.9020665]
[1742479147046,0.00017549,85528.0,85527.0,0.5412665]
[1742479147549,0.00017549,85528.0,85527.0,0.9020665]
[1742479147749,0.00017549,85528.0,85527.0,0.1169665]
[1742479147946,0.00017549,85528.0,85527.0,0.2137665]
[1742479148747,0.11714069,85528.0,85527.0,0.0968]
[1742479148952,0.00017549,85528.0,85510.0,0.4192943]
[1742479149144,0.2055,85527.0,85526.0,0.1170065]
[1742479149345,0.3047,85527.0,85526.0,0.1170065]
[1742479149645,0.3047,85527.0,85526.0,0.2141065]
[1742479149854,0.3047,85527.0,85526.0,0.2140665]
[1742479151449,0.3047,85527.0,85526.0,0.1169665]
[1742479153645,0.1985,85527.0,85526.0,0.3769665]
[1742479153841,0.1985,85527.0,85526.0,0.2135665]
[1742479154352,0.0992,85527.0,85526.0,0.3377265]
[1742479154547,0.00021549,85528.0,85527.0,0.1169665]
[1742479154752,0.00017549,85528.0,85527.0,0.5401665]
[1742479155149,0.00017549,85528.0,85527.0,2.0401665]
[1742479156053,0.00017549,85528.0,85527.0,0.3101665]
[1742479156245,0.00017549,85528.0,85527.0,0.5901665]
[1742479161255,0.00017549,85528.0,85527.0,0.4935665]
[1742479161553,0.00017549,85528.0,85527.0,0.2135665]
[1742479162859,0.00017549,85528.0,85527.0,0.3377265]
[1742479165255,0.11714069,85528.0,85527.0,0.3377265]
[1742479165566,0.1169802,85517.0,85513.0,0.1169854]
[1742479165862,0.1169802,85517.0,85516.0,0.1169816]
[1742479166167,0.3201802,85517.0,85516.0,0.1169816]
[1742479167261,0.3201802,85517.0,85514.0,0.20916498]
[1742479167262,0.1169829,85515.0,85514.0,0.20916498]
[1742479167749,0.1169829,85515.0,85514.0,0.20912498]
[1742479167954,0.4357829,85515.0,85514.0,0.32610928]
[1742479168556,0.4357829,85515.0,85514.0,0.42800928]
[1742479168861,0.2125,85515.0,85514.0,0.42800928]
[1742479169055,0.2125,85515.0,85514.0,0.2188843]
[1742479169967,0.1055,85515.0,85514.0,0.3430443]
[1742479170270,0.1055,85515.0,85514.0,0.7015443]
[1742479170662,4e-05,85519.0,85518.0,0.1169788]
[1742479170861,0.214968,85526.0,85525.0,0.1169693]
[1742479171060,0.316668,85526.0,85525.0,0.1169693]
[1742479171371,0.316668,85526.0,85525.0,0.2199693]
[1742479173173,0.1997,85526.0,85525.0,0.2199693]
[1742479173371,0.098,85526.0,85525.0,0.3228693]
[1742479173873,0.098,85526.0,85525.0,0.5828693]
[1742479174466,0.2149679,85526.0,85525.0,0.5828693]
[1742479175676,0.3114679,85526.0,85525.0,0.5828693]
[1742479175874,0.1945,85526.0,85525.0,0.5828693]
[1742479176969,0.098,85526.0,85525.0,0.5828693]
[1742479177165,0.098,85526.0,85525.0,0.59528908]
[1742479177775,0.098,85526.0,85525.0,0.1169693]
[1742479178085,0.098,85526.0,85525.0,0.4506693]
[1742479178086,0.2149679,85526.0,85525.0,0.4506693]
[1742479178273,0.099,85526.0,85525.0,0.4506693]
[1742479178474,0.099,85526.0,85525.0,0.4507493]
[1742479178679,0.4598,85526.0,85525.0,0.2207493]
[1742479179677,0.5767679,85526.0,85525.0,0.2207493]
[1742479179878,0.4598,85526.0,85525.0,0.2207493]
[1742479180381,0.5562,85526.0,85525.0,0.2207493]
[1742479180575,0.5562,85526.0,85525.0,0.1170493]
[1742479180576,0.6731679,85526.0,85525.0,0.1170493]
[1742479180975,0.099,85526.0,85525.0,0.3870493]
[1742479181175,0.099,85526.0,85525.0,8e-05]
[1742479181176,0.3123679,85526.0,85525.0,8e-05]
[1742479181871,0.3123679,85526.0,85525.0,0.1170493]
[1742479182783,0.3113679,85526.0,85525.0,0.1170493]
[1742479183077,0.3113679,85526.0,85525.0,0.1169693]
[1742479183279,0.3123679,85526.0,85525.0,0.1169693]
[1742479183479,0.3123679,85526.0,85525.0,0.1170493]
[1742479184474,0.1954,85526.0,85525.0,0.2199493]
[1742479184675,0.099,85526.0,85525.0,0.4799493]
[1742479184974,0.099,85526.0,85525.0,0.5874493]
[1742479185179,0.001,85526.0,85525.0,2.0874493]
[1742479185380,0.001,85526.0,85525.0,0.60208608]
[1742479185676,8e-08,85528.0,85527.0,0.1169665]
[1742479185875,8e-08,85528.0,85527.0,2.03576328]
[1742479186083,8e-08,85528.0,85527.0,2.24876328]
[1742479186869,8e-08,85528.0,85527.0,0.74876328]
[1742479190674,8e-08,85528.0,85527.0,0.89876328]
[1742479190874,8e-08,85528.0,85527.0,1.10788826]
[1742479192079,8e-08,85528.0,85527.0,0.95788826]
[1742479194587,8e-08,85528.0,85527.0,0.74876328]
[1742479194786,8e-08,85528.0,85527.0,0.74888828]
[1742479195381,8e-08,85528.0,85527.0,0.62472828]
[1742479195586,8e-08,85543.0,85542.0,0.116946]
[1742479195784,0.1063,85552.0,85551.0,0.1169337]
[1742479195973,0.1063,85552.0,85551.0,0.5210537]
[1742479196176,0.1063,85552.0,85551.0,0.6217537]
[1742479198588,0.1063,85552.0,85551.0,0.7256537]
[1742479199982,0.1169364,85549.0,85548.0,4e-05]
[1742479200388,0.1169364,85549.0,85541.0,4e-05]
[1742479200389,0.80660977,85549.0,85520.0,0.41369654]
[1742479200598,0.05,85528.0,85509.0,0.62208918]
[1742479200891,0.3608,85515.0,85514.0,0.1169843]
[1742479201094,0.1169898,85510.0,85509.0,0.62212918]
[1742479201390,0.1053,85514.0,85513.0,0.1169857]
[1742479201896,0.1754749,85519.0,85518.0,0.116972]
[1742479202091,0.0584874,85521.0,85520.0,0.1169761]
[1742479202392,0.477772,85524.0,85523.0,0.116972]
[1742479202594,0.4777706,85524.0,85523.0,0.116972]
[1742479203293,0.00017539,85532.0,85531.0,0.1169611]
[1742479203687,0.11713509,85532.0,85531.0,0.1169611]
[1742479203895,0.11713509,85532.0,85531.0,0.3211611]
[1742479204091,0.11713509,85532.0,85531.0,0.5811611]
[1742479204092,0.00017539,85532.0,85531.0,0.5811611]
[1742479204397,4e-05,85537.0,85536.0,0.1169542]
[1742479204694,4e-05,85560.0,85536.0,0.1169542]
[1742479204695,0.3608,85568.0,85566.0,0.1169118]
[1742479204996,0.28357241,85567.0,85566.0,0.1169118]
[1742479205295,0.2829724,85567.0,85566.0,0.1169118]
[1742479205497,0.1660563,85567.0,85566.0,0.1169118]
[1742479206086,0.36084,85568.0,85567.0,0.1169118]
[1742479206282,4e-05,85568.0,85567.0,0.5460118]
[1742479207400,0.24454663,85590.0,85578.0,0.0584481]
[1742479207594,0.24454663,85590.0,85586.0,0.1168859]
[1742479207595,0.1065,85587.0,85586.0,0.1168859]
[1742479207896,4e-05,85589.0,85588.0,0.1168832]
[1742479208111,0.24454663,85590.0,85589.0,0.1168818]
[1742479208401,0.24454663,85590.0,85588.0,0.12408]
[1742479208402,0.1168818,85589.0,85588.0,0.12408]
[1742479208693,0.1168927,85582.0,85581.0,0.11706448]
[1742479208896,0.1753285,85588.0,85587.0,0.1168845]
[1742479209091,0.2809285,85588.0,85587.0,0.1168845]
[1742479209688,0.27947077,85596.0,85589.0,0.1168818]
[1742479209995,0.38409931,85606.0,85589.0,1.26750587]
[1742479210182,0.33820441,85602.0,85601.0,0.1168654]
[1742479210387,0.45406881,85617.0,85601.0,0.1168654]
[1742479210388,0.2224454,85616.0,85615.0,0.1168463]
[1742479210795,0.1056,85616.0,85615.0,0.2409263]
[1742479210996,0.27907823,85617.0,85616.0,0.1168449]
[1742479211201,0.27907823,85617.0,85616.0,0.7676449]
[1742479212289,0.27907823,85617.0,85616.0,0.8917249]
[1742479213096,0.27012444,85622.0,85621.0,0.1168381]
[1742479213297,4e-08,85622.0,85621.0,0.7376381]
[1742479214895,4e-05,85634.0,85633.0,0.1168217]
[1742479215198,4e-05,85634.0,85633.0,0.8816617]
[1742479215703,4e-05,85634.0,85633.0,0.2408617]
[1742479216504,4e-05,85634.0,85633.0,0.4908617]
[1742479216802,0.1028,85643.0,85642.0,0.1168095]
[1742479217002,0.1028,85643.0,85642.0,0.2408095]
[1742479217208,0.1028,85643.0,85642.0,0.5008095]
[1742479217500,0.1028,85643.0,85642.0,0.2408095]
[1742479217690,0.1028,85643.0,85642.0,0.4808095]
[1742479218302,0.1028,85643.0,85642.0,0.4908095]
[1742479219199,4e-05,85653.0,85652.0,0.1167958]
[1742479219398,4e-05,85653.0,85652.0,0.2409158]
[1742479219903,0.1168345,85653.0,85652.0,0.2409158]
[1742479220204,4e-05,85653.0,85652.0,0.2409158]
[1742479220606,0.10264,85653.0,85652.0,0.2409158]
[1742479220806,0.5802345,85653.0,85652.0,0.12412]
[1742479220999,0.1168013,85649.0,85648.0,0.116801]
[1742479221499,0.0584375,85653.0,85649.0,0.0583993]
[1742479221699,0.0584005,85649.0,85648.0,0.1167999]
[1742479222007,0.1027,85652.0,85651.0,0.1167972]
[1742479222202,4e-05,85653.0,85652.0,0.1167958]
[1742479222597,4e-05,85653.0,85652.0,0.2172958]
[1742479222798,0.1026,85659.0,85658.0,0.1167876]
[1742479222991,0.1026,85659.0,85658.0,0.2411476]
[1742479223602,0.2193863,85659.0,85658.0,0.1167876]
[1742479224005,0.1026,85659.0,85658.0,0.1167876]
[1742479225114,0.3608,85678.0,85665.0,0.1167781]
[1742479225298,0.1167743,85668.0,85665.0,0.2413781]
[1742479225606,0.0583864,85669.0,85665.0,0.2413781]
[1742479225794,0.1167767,85666.0,85665.0,0.1246]
[1742479226403,0.1167767,85666.0,85665.0,0.1167781]
[1742479227507,0.1167781,85665.0,85664.0,0.241259]
[1742479227709,0.1167795,85664.0,85663.0,0.0583898]
[1742479228303,0.12464,85680.0,85666.0,0.0583881]
[1742479228600,0.583074,85668.0,85667.0,0.058387]
[1742479229004,0.3608,85669.0,85667.0,0.058387]
[1742479229307,4e-05,85671.0,85670.0,0.1167713]
[1742479229511,4e-05,85671.0,85670.0,0.2414113]
[1742479229707,0.0583816,85676.0,85673.0,0.1751474]
[1742479229909,0.0583802,85678.0,85674.0,0.2594826]
[1742479230209,0.3608,85686.0,85685.0,0.1167508]
[1742479230398,0.3608,85686.0,85685.0,0.2412708]
[1742479230595,0.4775495,85686.0,85685.0,0.4423708]
[1742479230795,0.4775495,85686.0,85685.0,0.32562]
[1742479230999,0.4775495,85686.0,85681.0,0.12448]
[1742479231000,0.1167549,85682.0,85681.0,0.12448]
[1742479231208,0.1167549,85682.0,85677.0,0.00017507]
[1742479231209,0.1167604,85678.0,85677.0,0.00017507]
[1742479231805,0.4775604,85678.0,85677.0,0.00017507]
[1742479232006,0.1167754,85667.0,85666.0,0.1246]
[1742479232209,0.1167754,85667.0,85666.0,0.2413767]
[1742479233002,0.1167754,85667.0,85664.0,0.116778]
[1742479233003,0.1167781,85665.0,85664.0,0.12476]
[1742479233408,0.1167781,85665.0,85664.0,0.3417395]
[1742479233613,0.1167795,85664.0,85663.0,0.22628]
[1742479233823,0.1167822,85662.0,85653.0,0.0583972]
[1742479234007,0.1609924,85661.0,85660.0,0.2414249]
[1742479234810,0.1609924,85661.0,85660.0,0.3483249]
[1742479235114,0.1609924,85661.0,85660.0,0.2236849]
[1742479235311,0.1026,85661.0,85660.0,0.2236849]
[1742479235615,0.0583808,85678.0,85663.0,0.0583897]
[1742479235910,0.11693887,85675.0,85674.0,0.1167658]
[1742479236267,0.00017437,85675.0,85674.0,0.2416458]
[1742479236441,0.00017437,85675.0,85674.0,0.4816458]
[1742479236635,0.1167595,85679.0,85678.0,0.0583802]
[1742479236802,0.1046,85689.0,85687.0,0.1751208]
[1742479237004,0.116746,85689.0,85688.0,0.2417068]
[1742479237204,0.116784,85690.0,85689.0,0.1167454]
[1742479237407,4e-05,85690.0,85689.0,0.3222454]
[1742479237600,0.116784,85690.0,85689.0,0.3222454]
[1742479237809,4e-05,85690.0,85689.0,0.3222454]
[1742479238316,0.116784,85690.0,85689.0,0.3222454]
[1742479238710,0.116744,85690.0,85689.0,0.2055]
[1742479238914,0.116744,85690.0,85689.0,0.3478054]
[1742479239118,0.0583707,85692.0,85691.0,0.1167427]
[1742479239417,0.0583707,85692.0,85691.0,0.4775427]
[1742479239612,4e-05,85694.0,85693.0,0.1167399]
[1742479239923,0.2167304,85700.0,85699.0,0.1167318]
[1742479240222,0.2167304,85700.0,85699.0,0.5019318]
[1742479240409,0.1,85700.0,85699.0,0.5019318]
[1742479240602,0.10004,85700.0,85699.0,0.5019318]
[1742479240803,0.1,85700.0,85699.0,0.7071318]
[1742479241208,0.0583473,85727.0,85699.0,0.5904]
[1742479241409,0.01101429,85726.0,85724.0,0.2333916]
[1742479241610,0.1166936,85729.0,85728.0,0.1166909]
[1742479241818,0.12766365,85729.0,85728.0,0.12552]
[1742479242005,0.1166936,85729.0,85728.0,0.12552]
[1742479242208,0.0583385,85740.0,85733.0,0.1166841]
[1742479242509,0.5358049,85745.0,85744.0,0.1166705]
[1742479242705,0.37179301,85745.0,85744.0,0.1166705]
[1742479242919,0.1166599,85752.0,85745.0,0.0583341]
[1742479243107,0.3608,85755.0,85749.0,0.1166626]
[1742479243308,0.3608,85755.0,85748.0,0.2422644]
[1742479243309,0.1019,85751.0,85748.0,0.2422644]
[1742479243511,0.1166623,85750.0,85749.0,0.1065]
[1742479244112,0.1166637,85749.0,85748.0,0.1256]
[1742479244713,0.0991,85750.0,85735.0,0.3608]
[1742479244714,0.1166814,85736.0,85735.0,0.3608]
[1742479244905,0.0583384,85740.0,85735.0,0.6033222]
[1742479245106,0.0991,85741.0,85736.0,0.1065]
[1742479245307,0.116677,85740.0,85736.0,0.4557]
[1742479245516,0.116677,85740.0,85738.0,0.3608]
[1742479245722,0.116677,85740.0,85739.0,0.2057]
[1742479246019,0.0991,85754.0,85746.0,0.1166667]
[1742479246209,0.1166589,85753.0,85747.0,0.33174]
[1742479246409,0.1166604,85752.0,85747.0,0.33174]
[1742479246611,0.3608,85755.0,85753.0,0.1166583]
[1742479246818,0.0583194,85768.0,85756.0,0.0583271]
[1742479247020,0.104,85772.0,85759.0,0.0583243]
[1742479247215,0.1166474,85761.0,85760.0,0.2017]
[1742479247618,0.2206474,85761.0,85760.0,0.3183487]
[1742479247924,0.2206474,85761.0,85737.0,1.50064]
[1742479247925,0.1166542,85756.0,85755.0,0.12612]
[1742479248122,0.1166555,85755.0,85754.0,0.12612]
[1742479248314,0.1166637,85749.0,85748.0,0.1025]
[1742479248517,0.1166637,85749.0,85748.0,0.3452851]
[1742479248719,0.1749888,85753.0,85750.0,0.0583306]
[1742479248915,0.1749888,85753.0,85752.0,0.1166596]
[1742479249317,0.0583292,85753.0,85752.0,0.2191596]
[1742479250123,0.1166583,85753.0,85752.0,0.2191583]
[1742479250322,4e-05,85754.0,85753.0,0.1166583]
[1742479250521,4e-05,85754.0,85753.0,0.2196583]
[1742479250728,0.0583231,85762.0,85756.0,0.1166542]
[1742479250911,0.0583231,85762.0,85761.0,0.1166474]
[1742479251622,0.0583237,85761.0,85756.0,0.0583267]
[1742479251818,0.1166487,85760.0,85759.0,0.2149487]
[1742479252020,0.1166528,85758.0,85757.0,0.1166515]
[1742479252211,0.1166528,85758.0,85751.0,0.05833]
[1742479252524,0.1166596,85752.0,85751.0,0.1166588]
[1742479252909,0.1166596,85752.0,85751.0,0.2425788]
[1742479253113,0.1165433,85752.0,85751.0,0.2425788]
[1742479253312,0.1750099,85763.0,85762.0,0.116646]
[1742479253518,4e-05,85763.0,85762.0,0.242726]
[1742479253715,0.0583142,85775.0,85774.0,0.1166283]
[1742479253922,0.3608,85776.0,85775.0,0.1166283]
[1742479254121,0.477427,85776.0,85775.0,0.1166283]
[1742479254327,0.3608,85776.0,85775.0,0.1166283]
[1742479255126,0.0583091,85783.0,85776.0,0.0583135]
[1742479255313,0.1166198,85782.0,85781.0,0.1166188]
[1742479255513,0.0583072,85786.0,85783.0,0.0583081]
[1742479255712,0.1166145,85786.0,85785.0,0.1166147]
[1742479256117,0.3608,85788.0,85786.0,0.116612]
[1742479256424,0.3608,85799.0,85796.0,0.0582992]
[1742479256425,0.0582994,85797.0,85796.0,0.0582992]
[1742479256625,0.0582994,85797.0,85796.0,0.1258]
[1742479257924,0.102,85798.0,85774.0,0.0583142]
[1742479258228,0.1166202,85781.0,85780.0,0.1749259]
[1742479258430,0.1166202,85781.0,85780.0,0.3004859]
[1742479258820,0.102,85782.0,85781.0,0.1166202]
[1742479259015,0.2186188,85782.0,85781.0,0.1166202]
[1742479259233,0.1166229,85779.0,85777.0,0.12556]
[1742479259526,0.1166229,85779.0,85772.0,0.1166319]
[1742479259829,0.1166229,85779.0,85778.0,0.11679916]
[1742479260024,0.1166324,85772.0,85771.0,0.12552]
[1742479260340,0.1166365,85769.0,85768.0,0.1166372]
[1742479260519,0.116646,85762.0,85761.0,0.20877447]
[1742479260723,0.1166447,85765.0,85762.0,0.0583227]
[1742479261029,0.0583185,85770.0,85769.0,0.1749514]
[1742479261331,0.1007,85771.0,85770.0,0.1166351]
[1742479261531,0.2173338,85771.0,85770.0,0.1166351]
[1742479261730,0.3238338,85771.0,85770.0,0.1166351]
[1742479262617,0.3238338,85771.0,85770.0,0.4774351]
[1742479262823,0.3608,85799.0,85788.0,0.1166107]
[1742479263018,0.4677,85799.0,85788.0,0.2419707]
[1742479263632,0.5842961,85799.0,85798.0,0.1165971]
[1742479263831,0.1069,85799.0,85798.0,0.1165971]
[1742479264038,0.1748987,85798.0,85797.0,0.1165961]
[1742479264239,0.00060001,85799.0,85798.0,0.1165971]
[1742479264532,0.3608,85818.0,85808.0,0.1165835]
[1742479264737,0.3608,85828.0,85809.0,0.12556]
[1742479264930,0.2127,85817.0,85816.0,0.1165726]
[1742479265231,0.3292713,85817.0,85816.0,0.1165726]
[1742479265424,0.1165808,85813.0,85809.0,0.0582907]
[1742479265623,0.1165808,85813.0,85808.0,0.00017486]
[1742479265624,0.1165821,85809.0,85808.0,0.00017486]
[1742479265829,0.5259891,85812.0,85808.0,0.00017486]
[1742479266030,0.1165821,85809.0,85808.0,0.00017486]
[1742479266228,0.1165821,85809.0,85787.0,0.0583059]
[1742479266229,0.1166039,85793.0,85788.0,0.00889463]
[1742479266531,0.1166025,85796.0,85795.0,0.1166007]
[1742479266733,0.3608,85803.0,85793.0,0.34130604]
[1742479266734,0.1166025,85794.0,85793.0,0.34130604]
[1742479267034,0.116601,85798.0,85797.0,0.1165971]
[1742479267236,0.1166025,85794.0,85793.0,0.34130604]
[1742479267538,0.1166025,85794.0,85793.0,0.45790994]
[1742479268126,0.1166025,85794.0,85793.0,0.34130604]
[1742479268324,0.1166025,85794.0,85793.0,0.45790994]
[1742479268528,0.1572986,85798.0,85795.0,0.0582999]
[1742479268731,0.0582986,85798.0,85797.0,0.1165984]
[1742479268933,0.3608,85803.0,85793.0,0.39960734]
[1742479268934,0.3608,85803.0,85802.0,0.1165916]
[1742479269132,0.00017486,85806.0,85805.0,0.1165876]
[1742479269333,0.11676106,85806.0,85805.0,0.1165876]
[1742479269739,0.0265,85805.0,85794.0,0.058301]
[1742479269945,0.1166012,85796.0,85795.0,0.1166004]
[1742479270342,0.4663,85800.0,85799.0,0.1165957]
[1742479270639,0.1055,85800.0,85799.0,0.1165957]
[1742479271142,0.1055,85800.0,85790.0,0.20539891]
[1742479271339,0.1166066,85791.0,85790.0,0.20539891]
[1742479271531,0.1166066,85791.0,85790.0,0.33187891]
[1742479271842,0.1166066,85791.0,85790.0,0.32200681]
[1742479272528,0.1023,85791.0,85790.0,0.32200681]
[1742479272733,0.2189066,85791.0,85790.0,0.53230681]
[1742479273039,0.5797066,85791.0,85790.0,0.20539891]
[1742479273429,0.2189066,85791.0,85790.0,0.20539891]
[1742479273831,0.2189066,85791.0,85786.0,0.27386522]
[1742479273832,0.116612,85787.0,85786.0,0.27386522]
[1742479274038,0.1166202,85781.0,85766.0,0.12632]
[1742479274340,0.1166474,85761.0,85760.0,0.59141595]
[1742479275034,0.058325,85760.0,85758.0,0.55398182]
[1742479275235,0.12776414,85759.0,85758.0,0.55398182]
[1742479275651,0.1166449,85763.0,85762.0,0.116646]
[1742479275940,0.11681476,85769.0,85768.0,0.1166379]
[1742479276145,0.1166406,85767.0,85766.0,0.11664]
[1742479276444,0.06958073,85769.0,85761.0,0.1012]
[1742479276445,0.1166419,85765.0,85761.0,0.1012]
[1742479276639,0.1166419,85765.0,85752.0,0.7508444]
[1742479276640,0.1166583,85753.0,85752.0,0.00017486]
[1742479276829,0.4774583,85753.0,85752.0,0.00017486]
[1742479277027,0.1166583,85753.0,85752.0,0.00017486]
[1742479277231,0.1166583,85753.0,85752.0,0.11683446]
[1742479277640,0.1166583,85753.0,85752.0,0.00017486]
[1742479277842,0.1166583,85753.0,85752.0,0.11683446]
[1742479278028,0.3608,85755.0,85754.0,0.1166569]
[1742479278233,0.082766,85790.0,85754.0,0.1166569]
[1742479278234,0.3608,85781.0,85765.0,0.0583207]
[1742479278441,0.11681396,85769.0,85768.0,0.1166379]
[1742479278843,0.11681396,85769.0,85768.0,1.7433179]
[1742479278844,0.00017486,85769.0,85768.0,1.7433179]
[1742479280141,0.09834,85774.0,85773.0,0.1166311]
[1742479280142,4e-05,85774.0,85773.0,0.1166311]
[1742479280341,0.10437476,85774.0,85773.0,0.1166311]
[1742479280532,0.10437476,85774.0,85773.0,0.3206311]
[1742479280740,0.10433476,85774.0,85773.0,0.3206311]
[1742479281642,0.0583175,85771.0,85768.0,1.6859983]
[1742479281845,0.1166365,85769.0,85768.0,0.12668]
[1742479282033,0.1156365,85769.0,85768.0,0.1176379]
[1742479282235,0.2152365,85769.0,85768.0,0.001]
[1742479282642,0.2142365,85769.0,85768.0,0.001]
[1742479282833,0.1166515,85758.0,85757.0,0.4774528]
[1742479283238,0.1166515,85758.0,85757.0,0.3608]
[1742479283446,0.1166515,85758.0,85757.0,0.4774528]
[1742479283637,0.1166515,85758.0,85757.0,0.3608]
[1742479284034,0.1749778,85758.0,85755.0,0.0583271]
[1742479284237,0.1166542,85756.0,85755.0,0.1749813]
[1742479284451,0.216154,85757.0,85756.0,0.1166542]
[1742479284644,0.216154,85757.0,85756.0,0.2152542]
[1742479285142,0.216154,85757.0,85752.0,0.00017486]
[1742479285143,0.1166583,85753.0,85752.0,0.00017486]
[1742479285446,0.1166583,85753.0,85752.0,0.11683446]
[1742479285640,0.1166583,85753.0,85752.0,0.00017486]
[1742479285950,0.1277212,85753.0,85752.0,0.00017486]
[1742479286141,0.2272212,85753.0,85752.0,0.00017486]
[1742479286541,0.2161583,85753.0,85752.0,0.11683446]
[1742479286744,0.2191583,85753.0,85752.0,0.11683446]
[1742479288355,0.2161583,85753.0,85752.0,0.11683446]
[1742479288559,0.2161583,85753.0,85752.0,0.00017486]
[1742479289352,0.2181583,85753.0,85752.0,0.11683446]
[1742479289555,0.2181583,85753.0,85752.0,0.00017486]
[1742479289754,0.2181583,85753.0,85752.0,0.11683446]
[1742479289943,0.2181583,85753.0,85752.0,0.00017486]
[1742479290148,0.2181583,85753.0,85752.0,0.11683446]
[1742479290548,0.1015,85753.0,85752.0,0.11683446]
[1742479290857,0.002,85753.0,85752.0,0.31973446]
[1742479291446,4e-05,85755.0,85754.0,0.1166569]
[1742479291647,0.1166955,85755.0,85754.0,0.1166569]
[1742479291855,0.1166555,85755.0,85754.0,0.1166569]
[1742479292355,0.1166555,85755.0,85752.0,0.00117486]
[1742479292356,0.1166583,85753.0,85752.0,0.00117486]
[1742479292543,0.1166583,85753.0,85752.0,0.00017486]
[1742479292947,0.2228583,85753.0,85752.0,0.00017486]
[1742479293144,0.2228583,85753.0,85752.0,0.11683446]
[1742479293353,0.2228583,85753.0,85752.0,0.00017486]
[1742479293950,0.2228583,85753.0,85752.0,0.11683446]
[1742479294359,0.2228583,85753.0,85752.0,0.00017486]
[1742479295042,0.2248583,85753.0,85752.0,0.00017486]
[1742479295761,0.2248583,85753.0,85752.0,0.11683446]
[1742479295951,0.2248583,85753.0,85752.0,0.10747486]
[1742479296151,0.2248583,85753.0,85752.0,0.00017486]
[1742479296353,0.1166759,85740.0,85739.0,0.1073]
[1742479297262,0.2232759,85740.0,85739.0,0.1073]
[1742479297761,0.5358117,85742.0,85741.0,0.1166746]
[1742479298160,0.1750117,85742.0,85741.0,0.5847746]
[1742479298357,0.1750117,85742.0,85741.0,0.6855746]
[1742479298665,0.002,85753.0,85752.0,0.1166596]
[1742479298956,0.058325,85760.0,85753.0,0.1166583]
[1742479299155,0.22099166,85754.0,85753.0,0.1166583]
[1742479299363,0.22099166,85754.0,85753.0,0.2159583]
[1742479299655,0.10433476,85754.0,85753.0,0.3167583]